[Event "15th Governor Cup 2019"]
[Site "Khanty-Mansiysk"]
[Date "2019.11.22"]
[Round "6.21"]
[White "Skvortsov, Andrey"]
[Black "Ryabov, Georgi"]
[Result "1-0"]
[ECO "E81"]
[WhiteElo "2137"]
[BlackElo "1887"]
[Annotator "ChessBase"]
[PlyCount "183"]
[EventDate "2019.11.19"]
[EventType "swiss"]
[EventCountry "RUS"]
[SourceTitle "playchess.com"]
[Source "ChessBase"]
[SourceQuality "1"]
[TimeControl "5400+30"]

1. d4 {[%emt 0:00:00]} Nf6 {[%emt 0:00:00]} 2. c4 {[%emt 0:00:00]} g6 {[%emt 0:00:00]} 3. f3 {[%emt 0:00:00]} Bg7 {[%emt 0:00:00]} 4. e4 {[%emt 0:00:00]} d6 {[%emt 0:00:06]} 5. Nc3 {[%emt 0:00:04]} O-O {[%emt 0:00:05]} 6. Bd3 {[%emt 0:00:05]} Nbd7 {[%emt 0:00:07]} 7. d5 {[%emt 0:00:09]} e5 {[%emt 0:00:30]} 8. Bg5 {[%emt 0:00:08]} h6 {[%emt 0:00:04]} 9. Bh4 {[%emt 0:00:02]} Nc5 {[%emt 0:01:55]} 10. Bc2 {[%emt 0:00:07]} a5 {[%emt 0:00:05]} 11. a3 {[%emt 0:00:17]} Qd7 {[%emt 0:03:58]} 12. b4 {[%emt 0:00:43]} axb4 {[%emt 0:00:04]} 13. axb4 {[%emt 0:00:05]} Rxa1 {[%emt 0:00:01]} 14. Qxa1 {[%emt 0:00:06]} Na6 {[%emt 0:00:23]} 15. Qb2 {[%emt 0:00:34]} Nh7 {[%emt 0:05:24]} 16. Ba4 {[%emt 0:00:07]} c6 {[%emt 0:00:03]} 17. b5 {[%emt 0:00:27]} Nc5 {[%emt 0:00:04]} 18. bxc6 {[%emt 0:00:07]} bxc6 {[%emt 0:00:01]} 19. dxc6 {[%emt 0:02:18]} Qa7 {[%emt 0:00:13]} 20. Bc2 {[%emt 0:00:42]} Qc7 {[%emt 0:02:48]} 21. Nd5 {[%emt 0:00:10]} Qa5+ {[%emt 0:00:02]} 22. Qc3 {[%emt 0:00:22]} Qxc3+ {[%emt 0:01:14]} 23. Nxc3 {[%emt 0:00:37]} g5 {[%emt 0:00:39]} 24. Bf2 {[%emt 0:00:08]} Ne6 {[%emt 0:00:06]} 25. Nb5 {[%emt 0:03:53]} Ba6 {[%emt 0:02:27]} 26. Nxd6 {[%emt 0:00:47]} Rd8 {[%emt 0:00:09]} 27. Nf5 {[%emt 0:01:34]} Bf8 {[%emt 0:00:12]} 28. Be3 {[%emt 0:01:16]} Bxc4 {[%emt 0:00:22]} 29. h4 {[%emt 0:01:26]} Bb5 {[%emt 0:01:23]} 30. Kf2 {[%emt 0:01:30]} Bxc6 {[%emt 0:00:34]} 31. Ne2 {[%emt 0:00:23]} Bb5 {[%emt 0:13:18]} 32. Rb1 {[%emt 0:00:11]} Bc4 {[%emt 0:00:11]} 33. g3 {[%emt 0:01:03]} Nf6 {[%emt 0:02:28]} 34. Rc1 {[%emt 0:08:21]} Kh7 {[%emt 0:13:38]} 35. Ba4 {[%emt 0:01:18]} Bd3 {[%emt 0:00:17]} 36. hxg5 {[%emt 0:01:55]} hxg5 {[%emt 0:00:13]} 37. Bc2 {[%emt 0:02:18]} Bc4 {[%emt 0:02:04]} 38. Bb1 {[%emt 0:00:44]} Bb5 {[%emt 0:00:54]} 39. Rh1+ {[%emt 0:00:33]} Kg8 {[%emt 0:02:46]} 40. Nc3 {[%emt 0:01:42]} Bc4 {[%emt 0:00:23]} 41. Rc1 {[%emt 0:01:54]} Bb3 {[%emt 0:11:17]} 42. Ne2 {[%emt 0:05:45]} Nd7 {[%emt 0:14:00]} 43. Rc3 {[%emt 0:00:36]} Ndc5 {[%emt 0:00:16]} 44. Nc1 {[%emt 0:00:24]} Ba4 {[%emt 0:02:30]} 45. Ba2 {[%emt 0:03:33]} Bd1 {[%emt 0:09:49]} 46. Bd5 {[%emt 0:01:52]} Rb8 {[%emt 0:01:12]} 47. Ke1 {[%emt 0:01:02]} Ba4 {[%emt 0:01:25]} 48. Rc4 {[%emt 0:02:59]} Bb5 {[%emt 0:00:20]} 49. Rc3 {[%emt 0:01:30]} Ba6 {[%emt 0:02:52]} 50. Rc2 {[%emt 0:02:18]} Rc8 {[%emt 0:01:58]} 51. Kd2 {[%emt 0:01:11]} Rd8 {[%emt 0:00:59]} 52. Ke1 {[%emt 0:00:18]} Rc8 {[%emt 0:00:05]} 53. Kd1 {[%emt 0:00:10]} Rd8 {[%emt 0:00:13]} 54. Rd2 {[%emt 0:00:25]} Rb8 {[%emt 0:00:57]} 55. Ra2 {[%emt 0:00:37]} Bb5 {[%emt 0:02:02]} 56. Ke1 {[%emt 0:01:22]} Na6 {[%emt 0:02:31]} 57. Kf2 {[%emt 0:00:47]} Nb4 {[%emt 0:01:43]} 58. Rd2 {[%emt 0:00:05]} Rc8 {[%emt 0:00:10]} 59. Rb2 {[%emt 0:03:56]} Rc2+ {[%emt 0:00:24]} 60. Rxc2 {[%emt 0:00:12]} Nxc2 {[%emt 0:00:07]} 61. Bd2 {[%emt 0:00:37]} Ned4 {[%emt 0:00:18]} 62. Nxd4 {[%emt 0:02:04]} exd4 {[%emt 0:01:32]} 63. Bxg5 {[%emt 0:00:12]} d3 {[%emt 0:00:10]} 64. Nb3 {[%emt 0:00:08]} Ba4 {[%emt 0:00:33]} 65. Bd2 {[%emt 0:06:35]} Bxb3 {[%emt 0:00:19]} 66. Bxb3 {[%emt 0:00:04]} Bc5+ {[%emt 0:00:03]} 67. Kf1 {[%emt 0:01:12]} Ne3+ {[%emt 0:00:05]} 68. Bxe3 {[%emt 0:00:52]} Bxe3 {[%emt 0:00:13]} 69. Bc4 {[%emt 0:00:13]} d2 {[%emt 0:00:18]} 70. Bb3 {[%emt 0:00:02]} Bc5 {[%emt 0:00:12]} 71. Ke2 {[%emt 0:00:28]} Bb4 {[%emt 0:00:08]} 72. e5 {[%emt 0:00:29]} Kf8 {[%emt 0:00:31]} 73. Kd3 {[%emt 0:00:05]} Ke7 {[%emt 0:00:09]} 74. Kc4 {[%emt 0:00:25]} Ba5 {[%emt 0:00:13]} 75. Kd5 {[%emt 0:02:10]} Bb6 {[%emt 0:00:13]} 76. g4 {[%emt 0:01:20]} f6 {[%emt 0:00:29]} 77. f4 {[%emt 0:01:06]} fxe5 {[%emt 0:02:35]} 78. Kxe5 {[%emt 0:00:06]} Kf8 {[%emt 0:00:25]} 79. Kf6 {[%emt 0:00:10]} Bd4+ {[%emt 0:01:02]} 80. Kg6 {[%emt 0:00:10]} Bc5 {[%emt 0:03:00]} 81. f5 {[%emt 0:00:17]} Bd4 {[%emt 0:00:29]} 82. f6 {[%emt 0:00:06]} Be3 {[%emt 0:00:32]} 83. g5 {[%emt 0:00:06]} Bc5 {[%emt 0:00:03]} 84. Kf5 {[%emt 0:01:18]} d1=Q {[%emt 0:00:09]} 85. Bxd1 {[%emt 0:00:09]} Kg8 {[%emt 0:00:04]} 86. Bb3+ {[%emt 0:00:49]} Kh8 {[%emt 0:00:15]} 87. Ke6 {[%emt 0:02:03]} Kg8 {[%emt 0:00:53]} 88. Kd7+ {[%emt 0:01:12]} Kh7 {[%emt 0:01:20]} 89. Bc2+ {[%emt 0:00:09]} Kh8 {[%emt 0:00:41]} 90. g6 {[%emt 0:00:32]} Bf8 {[%emt 0:01:10]} 91. Ke8 {[%emt 0:00:10]} Bh6 {[%emt 0:00:12]} 92. Kf7 {[%emt 0:00:22]} 1-0

[Event "15th Governor Cup 2019"]
[Site "Khanty-Mansiysk"]
[Date "2019.11.22"]
[Round "6.22"]
[White "Kochukova, Anna"]
[Black "Voskresenskaya, Marta"]
[Result "1/2-1/2"]
[ECO "B19"]
[WhiteElo "2117"]
[BlackElo "1859"]
[Annotator "ChessBase"]
[PlyCount "237"]
[EventDate "2019.11.19"]
[EventType "swiss"]
[EventCountry "RUS"]
[SourceTitle "playchess.com"]
[Source "ChessBase"]
[SourceQuality "1"]
[TimeControl "5400+30"]

1. e4 {[%emt 0:00:00]} c6 {[%emt 0:00:00]} 2. d4 {[%emt 0:00:00]} d5 {[%emt 0:00:00]} 3. Nd2 {[%emt 0:00:00]} dxe4 {[%emt 0:00:00]} 4. Nxe4 {[%emt 0:00:00]} Bf5 {[%emt 0:00:00]} 5. Ng3 {[%emt 0:00:10]} Bg6 {[%emt 0:00:00]} 6. h4 {[%emt 0:00:11]} h6 {[%emt 0:00:00]} 7. Nf3 {[%emt 0:00:08]} Nd7 {[%emt 0:00:00]} 8. h5 {[%emt 0:00:14]} Bh7 {[%emt 0:00:11]} 9. Bd3 {[%emt 0:00:05]} Bxd3 {[%emt 0:00:06]} 10. Qxd3 {[%emt 0:00:06]} e6 {[%emt 0:00:04]} 11. Bd2 {[%emt 0:00:13]} Ngf6 {[%emt 0:00:07]} 12. O-O-O {[%emt 0:00:11]} Be7 {[%emt 0:00:09]} 13. Kb1 {[%emt 0:00:33]} O-O {[%emt 0:00:21]} 14. Ne4 {[%emt 0:00:30]} Nxe4 {[%emt 0:00:06]} 15. Qxe4 {[%emt 0:00:07]} Nf6 {[%emt 0:00:02]} 16. Qe2 {[%emt 0:00:14]} Qd5 {[%emt 0:00:08]} 17. Ne5 {[%emt 0:01:13]} Qe4 {[%emt 0:00:35]} 18. Qxe4 {[%emt 0:00:06]} Nxe4 {[%emt 0:00:02]} 19. Be1 {[%emt 0:00:18]} Rad8 {[%emt 0:02:59]} 20. f3 {[%emt 0:00:44]} Nf6 {[%emt 0:00:36]} 21. Bf2 {[%emt 0:04:10]} Nd7 {[%emt 0:00:35]} 22. Nd3 {[%emt 0:01:21]} a6 {[%emt 0:07:27]} 23. g4 {[%emt 0:00:59]} Rde8 {[%emt 0:00:49]} 24. Rhg1 {[%emt 0:01:19]} f5 {[%emt 0:01:03]} 25. Bg3 {[%emt 0:05:12]} fxg4 {[%emt 0:05:42]} 26. fxg4 {[%emt 0:00:12]} Bf6 {[%emt 0:00:42]} 27. Nf4 {[%emt 0:04:54]} e5 {[%emt 0:01:58]} 28. Ng6 {[%emt 0:00:14]} Rf7 {[%emt 0:00:02]} 29. d5 {[%emt 0:00:30]} cxd5 {[%emt 0:01:49]} 30. Rxd5 {[%emt 0:00:03]} e4 {[%emt 0:02:07]} 31. Re1 {[%emt 0:02:21]} Nf8 {[%emt 0:04:01]} 32. Nxf8 {[%emt 0:04:37]} Kxf8 {[%emt 0:00:22]} 33. c3 {[%emt 0:00:34]} Bg5 {[%emt 0:00:47]} 34. Kc2 {[%emt 0:05:21]} Rf3 {[%emt 0:01:40]} 35. Bd6+ {[%emt 0:00:31]} Kg8 {[%emt 0:00:25]} 36. Re2 {[%emt 0:01:11]} Rf1 {[%emt 0:04:48]} 37. Rd4 {[%emt 0:01:33]} e3 {[%emt 0:02:24]} 38. Bc5 {[%emt 0:02:21]} Re6 {[%emt 0:02:39]} 39. Rb4 {[%emt 0:03:45]} b5 {[%emt 0:00:17]} 40. a4 {[%emt 0:07:51]} bxa4 {[%emt 0:00:02]} 41. Rxa4 {[%emt 0:00:01]} Rg1 {[%emt 0:02:53]} 42. Rd4 {[%emt 0:02:54]} Kh7 {[%emt 0:02:23]} 43. b4 {[%emt 0:04:12]} Ra1 {[%emt 0:05:16]} 44. Kb2 {[%emt 0:15:56]} Rf1 {[%emt 0:00:18]} 45. Kc2 {[%emt 0:01:44]} Ref6 {[%emt 0:10:58]} 46. Rd1 {[%emt 0:02:48]} R6f2 {[%emt 0:08:38]} 47. Rxf2 {[%emt 0:02:14]} Rxf2+ {[%emt 0:00:10]} 48. Kd3 {[%emt 0:00:23]} e2 {[%emt 0:07:22]} 49. Re1 {[%emt 0:01:48]} Rf3+ {[%emt 0:00:03]} 50. Kxe2 {[%emt 0:00:18]} Rxc3 {[%emt 0:00:21]} 51. Ra1 {[%emt 0:00:25]} Rc4 {[%emt 0:04:45]} 52. Rxa6 {[%emt 0:02:01]} Rxg4 {[%emt 0:00:07]} 53. b5 {[%emt 0:00:35]} Bd8 {[%emt 0:04:17]} 54. Rc6 {[%emt 0:06:16]} Rg5 {[%emt 0:00:51]} 55. b6 {[%emt 0:03:11]} Bxb6 {[%emt 0:00:13]} 56. Bxb6 {[%emt 0:00:08]} Rxh5 {[%emt 0:00:04]} 57. Bd4 {[%emt 0:00:50]} Rg5 {[%emt 0:00:14]} 58. Kf3 {[%emt 0:00:14]} Rg6 {[%emt 0:00:22]} 59. Rc7 {[%emt 0:00:12]} Rg5 {[%emt 0:01:18]} 60. Kf4 {[%emt 0:00:59]} Kg8 {[%emt 0:00:24]} 61. Ra7 {[%emt 0:00:54]} Kh8 {[%emt 0:00:22]} 62. Be5 {[%emt 0:00:29]} Kg8 {[%emt 0:00:19]} 63. Ke4 {[%emt 0:00:05]} Kh7 {[%emt 0:01:11]} 64. Kd5 {[%emt 0:00:15]} h5 {[%emt 0:00:08]} 65. Ke4 {[%emt 0:00:52]} Rg1 {[%emt 0:01:51]} 66. Kf5 {[%emt 0:00:56]} Rf1+ {[%emt 0:00:27]} 67. Kg5 {[%emt 0:00:25]} Rg1+ {[%emt 0:00:02]} 68. Kxh5 {[%emt 0:00:22]} Rh1+ {[%emt 0:00:05]} 69. Kg5 {[%emt 0:00:17]} Rg1+ {[%emt 0:00:02]} 70. Kf5 {[%emt 0:00:12]} Rf1+ {[%emt 0:00:06]} 71. Ke6 {[%emt 0:00:08]} Rg1 {[%emt 0:00:02]} 72. Rf7 {[%emt 0:00:22]} Rg6+ {[%emt 0:03:54]} 73. Ke7 {[%emt 0:00:16]} Kg8 {[%emt 0:00:54]} 74. Rf8+ {[%emt 0:01:23]} Kh7 {[%emt 0:00:01]} 75. Rd8 {[%emt 0:01:10]} Rg5 {[%emt 0:00:24]} 76. Bd4 {[%emt 0:00:13]} Rg4 {[%emt 0:00:25]} 77. Rd7 {[%emt 0:00:21]} Re4+ {[%emt 0:00:25]} 78. Kf7 {[%emt 0:00:24]} Rf4+ {[%emt 0:00:01]} 79. Ke6 {[%emt 0:00:07]} Rg4 {[%emt 0:00:08]} 80. Rd5 {[%emt 0:00:33]} Rh4 {[%emt 0:01:46]} 81. Bc3 {[%emt 0:01:02]} Rh3 {[%emt 0:00:07]} 82. Bd4 {[%emt 0:00:08]} Rh4 {[%emt 0:00:04]} 83. Be5 {[%emt 0:00:49]} Rh1 {[%emt 0:00:33]} 84. Rd3 {[%emt 0:00:46]} Rg1 {[%emt 0:00:34]} 85. Rf3 {[%emt 0:01:01]} Kg8 {[%emt 0:00:39]} 86. Rh3 {[%emt 0:00:11]} Rg6+ {[%emt 0:00:11]} 87. Kf5 {[%emt 0:01:06]} Rg2 {[%emt 0:00:18]} 88. Re3 {[%emt 0:01:13]} Kh7 {[%emt 0:00:29]} 89. Bg3 {[%emt 0:00:36]} Rg1 {[%emt 0:00:11]} 90. Bf4 {[%emt 0:00:05]} Kg8 {[%emt 0:01:06]} 91. Bg3 {[%emt 0:00:08]} Kh7 {[%emt 0:00:02]} 92. Kg4 {[%emt 0:00:05]} Rb1 {[%emt 0:00:42]} 93. Re7 {[%emt 0:00:13]} Rg1 {[%emt 0:00:17]} 94. Kh3 {[%emt 0:01:20]} Rh1+ {[%emt 0:00:09]} 95. Bh2 {[%emt 0:00:09]} Rb1 {[%emt 0:00:35]} 96. Kg2 {[%emt 0:00:30]} Rb6 {[%emt 0:00:10]} 97. Bf4 {[%emt 0:00:45]} Rg6+ {[%emt 0:00:08]} 98. Kf2 {[%emt 0:00:01]} Rf6 {[%emt 0:00:08]} 99. Kg3 {[%emt 0:00:06]} Rg6+ {[%emt 0:00:10]} 100. Kf3 {[%emt 0:00:33]} Rf6 {[%emt 0:00:04]} 101. Kg4 {[%emt 0:00:03]} Rg6+ {[%emt 0:00:23]} 102. Bg5 {[%emt 0:00:36]} Rb6 {[%emt 0:00:35]} 103. Kh5 {[%emt 0:00:12]} Rb5 {[%emt 0:00:15]} 104. Re6 {[%emt 0:00:27]} Rb1 {[%emt 0:00:27]} 105. Kg4 {[%emt 0:00:58]} Rg1+ {[%emt 0:00:08]} 106. Kf5 {[%emt 0:00:04]} Rf1+ {[%emt 0:00:12]} 107. Bf4 {[%emt 0:00:02]} Rg1 {[%emt 0:00:34]} 108. Re3 {[%emt 0:00:35]} Kg8 {[%emt 0:02:55]} 109. Bg5 {[%emt 0:00:26]} Kh7 {[%emt 0:00:34]} 110. Rh3+ {[%emt 0:00:46]} Kg8 {[%emt 0:00:01]} 111. Rh2 {[%emt 0:00:21]} Rf1+ {[%emt 0:00:19]} 112. Kg6 {[%emt 0:00:26]} Ra1 {[%emt 0:00:14]} 113. Rg2 {[%emt 0:00:21]} Ra6+ {[%emt 0:00:11]} 114. Kh5 {[%emt 0:00:05]} Ra5 {[%emt 0:00:04]} 115. Kg4 {[%emt 0:00:09]} Ra4+ {[%emt 0:00:01]} 116. Bf4 {[%emt 0:00:03]} Kh7 {[%emt 0:00:14]} 117. Kf3 {[%emt 0:00:33]} Ra3+ {[%emt 0:00:01]} 118. Be3 {[%emt 0:00:02]} Rb3 {[%emt 0:00:22]} 119. Ke4 {[%emt 0:00:06]} 1/2-1/2

[Event "15th Governor Cup 2019"]
[Site "Khanty-Mansiysk"]
[Date "2019.11.23"]
[Round "7.1"]
[White "Rakhmanov, Aleksandr"]
[Black "Sakaev, Konstantin"]
[Result "1/2-1/2"]
[ECO "A06"]
[WhiteElo "2638"]
[BlackElo "2595"]
[Annotator "ChessBase"]
[PlyCount "142"]
[EventDate "2019.11.19"]
[EventType "swiss"]
[EventCountry "RUS"]
[SourceTitle "playchess.com"]
[Source "ChessBase"]
[SourceQuality "1"]
[TimeControl "5400+30"]

1. Nf3 {[%emt 0:03:10]} d5 {[%emt 0:00:00]} 2. g3 {[%emt 0:00:34]} Nf6 {[%emt 0:00:20]} 3. Bg2 {[%emt 0:00:29]} c5 {[%emt 0:00:08]} 4. O-O {[%emt 0:00:35]} e6 {[%emt 0:00:27]} 5. d4 {[%emt 0:01:53]} cxd4 {[%emt 0:01:09]} 6. Nxd4 {[%emt 0:00:14]} e5 {[%emt 0:00:19]} 7. Nf3 {[%emt 0:00:14]} Nc6 {[%emt 0:03:45]} 8. c4 {[%emt 0:02:15]} d4 {[%emt 0:00:58]} 9. e3 {[%emt 0:00:47]} Be7 {[%emt 0:00:26]} 10. exd4 {[%emt 0:00:17]} exd4 {[%emt 0:00:06]} 11. Bf4 {[%emt 0:00:58]} Be6 {[%emt 0:00:21]} 12. Re1 {[%emt 0:03:19]} O-O {[%emt 0:12:04]} 13. Ne5 {[%emt 0:07:22]} Rc8 {[%emt 0:02:04]} 14. Nd2 {[%emt 0:10:25]} Nxe5 {[%emt 0:07:01]} 15. Bxe5 {[%emt 0:00:38]} Qd7 {[%emt 0:00:26]} 16. Ne4 {[%emt 0:12:30]} Rfd8 {[%emt 0:03:42]} 17. Ng5 {[%emt 0:05:58]} d3 {[%emt 0:29:09]} 18. Nxe6 {[%emt 0:02:59]} fxe6 {[%emt 0:01:55]} 19. Bh3 {[%emt 0:07:27]} Rc6 {[%emt 0:04:25]} 20. Bc3 {[%emt 0:17:28]} Bc5 {[%emt 0:04:33]} 21. Qd2 {[%emt 0:07:07]} Kh8 {[%emt 0:06:24]} 22. Kg2 {[%emt 0:08:41]} Rd6 {[%emt 0:05:48]} 23. f3 {[%emt 0:03:00]} Qf7 {[%emt 0:10:32]} 24. Rad1 {[%emt 0:00:53]} h6 {[%emt 0:01:52]} 25. Re5 {[%emt 0:00:59]} Bd4 {[%emt 0:00:18]} 26. Bxd4 {[%emt 0:00:20]} Rxd4 {[%emt 0:00:01]} 27. Bxe6 {[%emt 0:00:12]} Qc7 {[%emt 0:01:28]} 28. Rde1 {[%emt 0:00:48]} Re8 {[%emt 0:01:59]} 29. b3 {[%emt 0:00:18]} Rdd8 {[%emt 0:00:36]} 30. R5e3 {[%emt 0:00:22]} Qc5 {[%emt 0:01:06]} 31. Rxd3 {[%emt 0:00:36]} Rxd3 {[%emt 0:01:05]} 32. Qxd3 {[%emt 0:00:01]} Qb6 {[%emt 0:00:17]} 33. Qf5 {[%emt 0:01:31]} Qd6 {[%emt 0:00:17]} 34. Re2 {[%emt 0:00:44]} b6 {[%emt 0:00:11]} 35. g4 {[%emt 0:01:14]} Qd1 {[%emt 0:00:55]} 36. Rf2 {[%emt 0:00:45]} Qe1 {[%emt 0:00:29]} 37. g5 {[%emt 0:00:43]} Rxe6 {[%emt 0:00:41]} 38. gxf6 {[%emt 0:00:06]} Rxf6 {[%emt 0:00:40]} 39. Qe4 {[%emt 0:00:28]} Qd1 {[%emt 0:00:28]} 40. Qc2 {[%emt 0:00:52]} Qd6 {[%emt 0:00:43]} 41. Rd2 {[%emt 0:00:17]} Rg6+ {[%emt 0:00:15]} 42. Kh1 {[%emt 0:00:48]} Qf6 {[%emt 0:00:28]} 43. Qd1 {[%emt 0:00:22]} Kh7 {[%emt 0:00:32]} 44. Rd4 {[%emt 0:00:30]} Qe5 {[%emt 0:00:51]} 45. Re4 {[%emt 0:00:38]} Qb2 {[%emt 0:00:26]} 46. Re2 {[%emt 0:00:08]} Qc3 {[%emt 0:00:14]} 47. Qf1 {[%emt 0:00:18]} Qd3 {[%emt 0:00:21]} 48. Re1 {[%emt 0:00:41]} Qc3 {[%emt 0:00:54]} 49. Qe2 {[%emt 0:00:24]} Rf6 {[%emt 0:00:31]} 50. Rf1 {[%emt 0:00:32]} Rf4 {[%emt 0:00:25]} 51. Kg2 {[%emt 0:00:27]} Qf6 {[%emt 0:00:10]} 52. Qd3+ {[%emt 0:00:14]} Kh8 {[%emt 0:00:26]} 53. Re1 {[%emt 0:00:21]} Qg5+ {[%emt 0:00:07]} 54. Kh1 {[%emt 0:00:19]} Rf8 {[%emt 0:00:11]} 55. Qe4 {[%emt 0:00:21]} Qf6 {[%emt 0:00:54]} 56. Kg2 {[%emt 0:00:30]} Qg5+ {[%emt 0:00:17]} 57. Kf2 {[%emt 0:00:19]} Qd2+ {[%emt 0:00:14]} 58. Re2 {[%emt 0:00:08]} Qc3 {[%emt 0:00:16]} 59. Kg2 {[%emt 0:00:20]} Qf6 {[%emt 0:00:20]} 60. Qg4 {[%emt 0:00:25]} Qd6 {[%emt 0:00:31]} 61. Qg3 {[%emt 0:01:13]} Qf6 {[%emt 0:00:35]} 62. Qg4 {[%emt 0:00:46]} Qd6 {[%emt 0:00:23]} 63. Qh5 {[%emt 0:00:09]} Kh7 {[%emt 0:01:06]} 64. Qe5 {[%emt 0:00:30]} Qg6+ {[%emt 0:00:11]} 65. Kf2 {[%emt 0:00:32]} Kh8 {[%emt 0:00:28]} 66. Qe7 {[%emt 0:01:53]} Qf5 {[%emt 0:00:19]} 67. Re3 {[%emt 0:00:15]} Qc2+ {[%emt 0:00:39]} 68. Re2 {[%emt 0:00:12]} Qf5 {[%emt 0:00:04]} 69. Qe4 {[%emt 0:00:14]} Qh3 {[%emt 0:00:38]} 70. Ke3 {[%emt 0:00:55]} Qh5 {[%emt 0:00:21]} 71. Kd4 {[%emt 0:00:59]} Qh3 {[%emt 0:01:28]} 1/2-1/2

[Event "15th Governor Cup 2019"]
[Site "Khanty-Mansiysk"]
[Date "2019.11.23"]
[Round "7.2"]
[White "Kokarev, Dmitry"]
[Black "Goganov, Aleksey"]
[Result "1/2-1/2"]
[ECO "C65"]
[WhiteElo "2601"]
[BlackElo "2565"]
[Annotator "ChessBase"]
[PlyCount "113"]
[EventDate "2019.11.19"]
[EventType "swiss"]
[EventCountry "RUS"]
[SourceTitle "playchess.com"]
[Source "ChessBase"]
[SourceQuality "1"]
[TimeControl "5400+30"]

1. e4 {[%emt 0:00:00]} e5 {[%emt 0:00:58]} 2. Nf3 {[%emt 0:00:00]} Nc6 {[%emt 0:00:21]} 3. Bb5 {[%emt 0:00:00]} Nf6 {[%emt 0:00:14]} 4. d3 {[%emt 0:00:00]} Bc5 {[%emt 0:00:20]} 5. Bxc6 {[%emt 0:00:14]} dxc6 {[%emt 0:00:05]} 6. Nbd2 {[%emt 0:00:09]} O-O {[%emt 0:03:26]} 7. O-O {[%emt 0:00:13]} Re8 {[%emt 0:01:03]} 8. Nc4 {[%emt 0:00:15]} Nd7 {[%emt 0:00:09]} 9. Bd2 {[%emt 0:00:50]} f6 {[%emt 0:00:25]} 10. Nh4 {[%emt 0:04:02]} Nb6 {[%emt 0:00:12]} 11. Ne3 {[%emt 0:03:34]} Be6 {[%emt 0:00:21]} 12. a4 {[%emt 0:04:14]} Nc8 {[%emt 0:04:33]} 13. Kh1 {[%emt 0:01:50]} Nd6 {[%emt 0:01:50]} 14. b4 {[%emt 0:12:48]} Bd4 {[%emt 0:00:06]} 15. c3 {[%emt 0:00:07]} Bxe3 {[%emt 0:00:05]} 16. Bxe3 {[%emt 0:00:03]} f5 {[%emt 0:08:36]} 17. Nxf5 {[%emt 0:04:29]} Bxf5 {[%emt 0:02:19]} 18. exf5 {[%emt 0:00:09]} Nxf5 {[%emt 0:00:03]} 19. a5 {[%emt 0:07:28]} Qd5 {[%emt 0:02:25]} 20. Re1 {[%emt 0:10:06]} e4 {[%emt 0:08:45]} 21. dxe4 {[%emt 0:02:48]} Qxe4 {[%emt 0:14:16]} 22. h3 {[%emt 0:07:46]} Nxe3 {[%emt 0:03:14]} 23. Rxe3 {[%emt 0:01:40]} Qc4 {[%emt 0:00:29]} 24. Qd3 {[%emt 0:04:26]} Qxd3 {[%emt 0:04:10]} 25. Rxd3 {[%emt 0:00:10]} Re2 {[%emt 0:06:20]} 26. Kg1 {[%emt 0:07:53]} Rf8 {[%emt 0:01:20]} 27. f3 {[%emt 0:00:36]} Rfe8 {[%emt 0:05:43]} 28. Rad1 {[%emt 0:02:55]} Kf7 {[%emt 0:03:49]} 29. R1d2 {[%emt 0:01:17]} Re1+ {[%emt 0:01:53]} 30. Kf2 {[%emt 0:00:07]} Rc1 {[%emt 0:01:50]} 31. Rd4 {[%emt 0:04:40]} Re7 {[%emt 0:03:03]} 32. Rc4 {[%emt 0:01:29]} a6 {[%emt 0:00:45]} 33. h4 {[%emt 0:00:34]} Ke8 {[%emt 0:01:20]} 34. h5 {[%emt 0:02:34]} Rh1 {[%emt 0:00:43]} 35. Rc5 {[%emt 0:00:15]} Re6 {[%emt 0:00:59]} 36. Rd4 {[%emt 0:01:36]} Rhe1 {[%emt 0:01:28]} 37. Rg5 {[%emt 0:04:27]} R1e2+ {[%emt 0:00:10]} 38. Kg3 {[%emt 0:00:23]} g6 {[%emt 0:07:11]} 39. hxg6 {[%emt 0:00:12]} hxg6 {[%emt 0:00:06]} 40. Rh4 {[%emt 0:00:23]} Rd6 {[%emt 0:02:14]} 41. Rh6 {[%emt 0:02:41]} Ree6 {[%emt 0:00:15]} 42. Kf4 {[%emt 0:00:38]} Rf6+ {[%emt 0:00:25]} 43. Ke4 {[%emt 0:00:55]} b6 {[%emt 0:00:43]} 44. Rh8+ {[%emt 0:03:41]} Kd7 {[%emt 0:00:45]} 45. Rh7+ {[%emt 0:00:06]} Kc8 {[%emt 0:00:25]} 46. f4 {[%emt 0:02:44]} Kb7 {[%emt 0:02:09]} 47. Re5 {[%emt 0:01:05]} Rd1 {[%emt 0:01:39]} 48. axb6 {[%emt 0:03:20]} Kxb6 {[%emt 0:00:29]} 49. g3 {[%emt 0:00:23]} Rfd6 {[%emt 0:05:19]} 50. Rg7 {[%emt 0:01:01]} Rc1 {[%emt 0:02:06]} 51. Rc5 {[%emt 0:01:08]} a5 {[%emt 0:01:33]} 52. Rxa5 {[%emt 0:00:09]} Rxc3 {[%emt 0:00:06]} 53. Rg5 {[%emt 0:00:52]} Re6+ {[%emt 0:00:07]} 54. Re5 {[%emt 0:00:17]} Rd6 {[%emt 0:00:23]} 55. Rg5 {[%emt 0:00:09]} Re6+ {[%emt 0:00:02]} 56. Re5 {[%emt 0:00:05]} Rd6 {[%emt 0:00:02]} 57. Rg5 {[%emt 0:00:08]} 1/2-1/2